fUST/lending_fUST_20250210
["ID","MTS","AMOUNT","RATE_DAILY","PERIOD"]
[352559335,1739166656454,-846.083085,0.00013699,2]
[352559336,1739166656464,-151.0,0.00013699,2]
[352559337,1739166656474,-431.670533,0.00013699,2]
[352559338,1739166656484,-431.670533,0.00013699,2]
[352559339,1739166656493,-165.26543922,0.000137,2]
[352559340,1739166656503,-165.26543922,0.000137,2]
[352559341,1739166656512,-165.26,0.000137,2]
[352559342,1739166656522,-218.19187371,0.00013741,2]
[352559343,1739166656531,-151.0,0.00013815,2]
[352559344,1739166656541,-151.0,0.00013815,2]
[352559345,1739166656550,-635.12,0.00013835,2]
[352559346,1739166656560,-196.141507,0.00013835,2]
[352559347,1739166656569,-196.141507,0.00013835,2]
[352559348,1739166656579,-920.88,0.00013835,2]
[352559349,1739166656589,-151.0,0.00013835,2]
[352559350,1739166656598,-3328.95,0.00013835,2]
[352559351,1739166656609,-2894.24,0.00013835,2]
[352559352,1739166656618,-1558.59,0.00013835,2]
[352559353,1739166656629,-1662.48,0.00013835,2]
[352559354,1739166656638,-947.49,0.00013835,2]
[352559355,1739166656647,-1902.99,0.00013835,2]
[352559356,1739166656657,-550.72,0.00013835,2]
[352559357,1739166656666,-890.25,0.00013835,2]
[352559358,1739166656676,-909.22,0.00013835,2]
[352559359,1739166656685,-12704.19,0.00013835,2]
[352559360,1739166656694,-813.55,0.00013835,2]
[352559361,1739166656704,-650.99,0.00013835,2]
[352559362,1739166656714,-6256.34,0.00013835,2]
[352559363,1739166656724,-620.17,0.00013835,2]
[352559364,1739166656733,-514.74,0.00013835,2]
[352559365,1739166656742,-1152.93,0.00013835,2]
[352559366,1739166656752,-1159.47,0.00013835,2]
[352559367,1739166656761,-619.77,0.00013835,2]
[352559368,1739166656771,-502.25,0.00013835,2]
[352559369,1739166656780,-500.0,0.00013835,2]
[352559370,1739166656789,-528.3,0.00013835,2]
[352559371,1739166656799,-604.56,0.00013835,2]
[352559372,1739166656809,-876.02,0.00013835,2]
[352559373,1739166656819,-524.85,0.00013835,2]
[352559374,1739166656829,-2117.64,0.00013835,2]
[352559375,1739166656839,-1708.3,0.00013835,2]
[352559376,1739166656848,-747.79,0.00013835,2]
[352559377,1739166656858,-13267.29691025,0.00013888,2]
[352559378,1739166656868,-182.47963605,0.00013971,2]
[352559379,1739166656877,-4513.03418634,0.00013972,5]
[352559380,1739166656888,-635.12,0.00013972,2]
[352559381,1739166656897,-920.88,0.00013972,2]
[352559382,1739166656907,-3328.95,0.00013972,2]
[352559383,1739166656916,-2894.24,0.00013972,2]
[352559384,1739166656926,-1558.59,0.00013972,2]
[352559385,1739166656936,-1662.48,0.00013972,2]
[352559386,1739166656945,-947.49,0.00013972,2]
[352559387,1739166656956,-1902.99,0.00013972,2]
[352559388,1739166656966,-550.72,0.00013972,2]
[352559389,1739166656976,-890.25,0.00013972,2]
[352559390,1739166656985,-909.22,0.00013972,2]
[352559391,1739166656994,-12704.19,0.00013972,2]
[352559392,1739166657004,-813.55,0.00013972,2]
[352559393,1739166657014,-650.99,0.00013972,2]
[352559394,1739166657024,-6256.34,0.00013972,2]
[352559395,1739166657034,-620.17,0.00013972,2]
[352559396,1739166657044,-514.74,0.00013972,2]
[352559397,1739166657057,-1152.93,0.00013972,2]
[352559398,1739166657067,-1159.47,0.00013972,2]
[352559399,1739166657076,-619.77,0.00013972,2]
[352559400,1739166657086,-502.25,0.00013972,2]
[352559401,1739166657095,-500.0,0.00013972,2]
[352559402,1739166657106,-528.3,0.00013972,2]
[352559403,1739166657116,-604.56,0.00013972,2]
[352559404,1739166657125,-876.02,0.00013972,2]
[352559405,1739166657136,-524.85,0.00013972,2]
[352559406,1739166657146,-151.0,0.00013972,2]
[352559407,1739166657156,-2117.64,0.00013972,2]
[352559408,1739166657166,-1708.3,0.00013972,2]
[352559409,1739166657176,-747.79,0.00013972,2]
[352559410,1739166657185,-415.0,0.00014,4]
[352559411,1739166657195,-1192.74627279,0.00014001,2]
[352559412,1739166657205,-645.288796,0.00014094,2]
[352559413,1739166657216,-2145.97,0.000141,2]
[352559414,1739166657226,-1192.74627279,0.00014101,2]
[352559415,1739166657235,-635.17,0.00014109,2]
[352559416,1739166657245,-151.0,0.00014109,2]
[352559417,1739166657255,-159.683901,0.00014109,2]
[352559418,1739166657264,-151.0,0.00014109,2]
[352559419,1739166657274,-151.0,0.00014109,2]
[352559420,1739166657283,-920.95,0.00014109,2]
[352559421,1739166657292,-151.960599,0.00014109,2]
[352559422,1739166657302,-151.0,0.00014109,2]
[352559423,1739166657311,-3328.98792237,0.00014109,2]
[352559424,1739166657321,-2894.25755954,0.00014109,2]
[352559425,1739166657330,-1558.8079993,0.00014109,2]
[352559426,1739166657340,-1662.51065621,0.00014109,2]
[352559427,1739166657350,-947.51,0.00014109,2]
[352559428,1739166657359,-1903.09943141,0.00014109,2]
[352559429,1739166657369,-550.86,0.00014109,2]
[352559430,1739166657379,-890.47854722,0.00014109,2]
[352559431,1739166657388,-909.37,0.00014109,2]
[352559432,1739166657398,-12704.2689,0.00014109,2]
[352559433,1739166657407,-813.59,0.00014109,2]
[352559434,1739166657416,-651.0,0.00014109,2]
[352559435,1739166657425,-6256.48932146,0.00014109,2]
[352559436,1739166657435,-620.29,0.00014109,2]
[352559437,1739166657445,-514.93,0.00014109,2]
[352559438,1739166657455,-1153.16559758,0.00014109,2]
[352559439,1739166657465,-1159.66078451,0.00014109,2]
[352559440,1739166657474,-619.94,0.00014109,2]
[352559441,1739166657484,-502.34,0.00014109,2]
[352559442,1739166657494,-198.5560366,0.00014109,2]
[352559443,1739166657503,-528.42111763,0.00014109,2]
[352559444,1739166657513,-604.74,0.00014109,2]
[352559445,1739166657523,-876.14,0.00014109,2]
[352559446,1739166657533,-524.97,0.00014109,2]
[352559447,1739166657542,-2117.6599499,0.00014109,2]
[352559448,1739166657552,-1708.30201855,0.00014109,2]
[352559449,1739166657561,-747.79,0.00014109,2]
[352559450,1739166657571,-218.19187371,0.00014159,2]
[352559451,1739166657580,-151.0,0.00014201,2]
[352559452,1739166657589,-188.815261,0.00014201,2]
[352559453,1739166657599,-35757.78054597,0.00014201,5]
[352559454,1739166657608,-1192.74627279,0.00014201,2]
[352559455,1739166657618,-984.10245036,0.00014247,2]
[352559456,1739166657628,-683.62653941,0.00014247,2]
[352559457,1739166657638,-1000.0,0.00014247,2]
[352559458,1739166657647,-1000.0,0.00014247,2]
[352559459,1739166657656,-1000.0,0.00014247,2]
[352559460,1739166657666,-1000.0,0.00014247,2]
[352559461,1739166657676,-1192.74627279,0.00014301,2]
[352559462,1739166657686,-151.0,0.00014401,2]
[352559463,1739166657695,-1192.74627279,0.00014401,2]
[352559464,1739166657704,-459.50475515,0.00014414,2]
[352559465,1739166657714,-151.0,0.00014501,2]
[352559466,1739166657724,-224.311141,0.00014501,2]
[352559467,1739166657734,-224.311141,0.00014501,2]
[352559468,1739166657743,-156.406718,0.00014501,2]
[352559469,1739166657752,-431.670533,0.00014501,2]
[352559470,1739166657761,-431.670533,0.00014501,2]
[352559471,1739166657771,-1192.74627279,0.00014501,2]
[352559472,1739166657780,-218.19187371,0.00014576,2]
[352559473,1739166657790,-151.0,0.000146,2]
[352559474,1739166657800,-1192.74627279,0.00014601,2]
[352559475,1739166657810,-1192.74627279,0.00014701,2]
[352559476,1739166657820,-600.0,0.00014755,2]
[352559477,1739166657830,-1192.74627279,0.00014801,2]
[352559478,1739166657839,-10011.48167571,0.000149,2]
[352559479,1739166657850,-1192.74627279,0.00014901,2]
[352559480,1739166657859,-150.0,0.00014953,2]
[352559481,1739166657869,-291.329,0.00014953,2]
[352559482,1739166657878,-2295.0,0.00014953,2]
[352559483,1739166657888,-218.19187371,0.00014994,2]
[352559484,1739166657899,-301787.70904411,0.00015,2]
[352559485,1739166658036,-353.76211186,0.00010958,2]
[352559486,1739166658110,-146.23788814,0.00010958,2]
[352559487,1739166658119,-77.80366171,0.00011095,2]
[352559488,1739166658427,-500.0,0.00010958,2]
[352559489,1739166658436,-290.2051247,0.00010958,2]
[352559493,1739167548135,-303.6813169,9.392e-05,2]
[352559494,1739167548158,-4836.88674715,9.487e-05,2]
[352559495,1739167551095,-163.11325285,9.487e-05,2]
[352559496,1739167551118,-1016.56350417,9.707e-05,2]
[352559497,1739167603075,-176.44026546,9.609e-05,2]
[352559498,1739167622397,1301.61,8.214e-05,2]
[352559499,1739167639098,-4823.55973454,9.609e-05,2]
[352559500,1739167639120,-300.0,9.706e-05,2]
[352559501,1739167639143,-7.88081041,9.707e-05,2]
[352559502,1739167650120,-2209.75680719,9.609e-05,2]
[352559507,1739167745101,-2790.24319281,9.609e-05,2]
[352559508,1739167745124,-300.0,9.706e-05,2]
[352559509,1739167745146,-23875.55568542,9.707e-05,2]
[352559510,1739167745168,-495.05904751,9.778e-05,2]
[352559511,1739167745334,-250.0,9.977e-05,2]
[352559512,1739167745356,-241.73606124,0.00010676,2]
[352559513,1739167755107,-178.26393876,0.00010676,2]
[352559514,1739167755128,-311.73606124,0.00010685,2]
[352559572,1739167832210,-505.29837822,0.00010578,2]
[352559584,1739167832308,-2818.28446965,0.00010578,2]
[352559586,1739167832321,-1319.7871706,0.00010578,2]
[352559588,1739167832331,-88.26393876,0.00010685,2]
[352559590,1739167832341,-8620.01552516,0.00010858,2]
[352559592,1739167832352,-821.580644,0.000109,2]
[352560025,1739167838045,-180.92926019,0.00010858,2]
[352560026,1739167838054,-9182.059356,0.000109,2]
[352560027,1739167838063,-453.78598865,0.00010957,2]
[352560028,1739167838073,-500.0,0.00010957,2]
[352560029,1739167838083,-500.0,0.00010957,2]
[352560030,1739167838092,-170.0,0.00010957,2]
[352560031,1739167838101,-500.0,0.00010957,2]
[352560032,1739167838111,-500.0,0.00010957,2]
[352560033,1739167838120,-237.16187037,0.00010957,2]
[352560034,1739167838129,-197.94332354,0.00010957,2]
[352560035,1739167838138,-500.0,0.00010957,2]
[352560036,1739167838149,-500.0,0.00010957,2]
[352560037,1739167838158,-500.0,0.00010957,2]
[352560038,1739167838167,-500.0,0.00010957,2]
[352560039,1739167838177,-318.17760546,0.00010957,2]
[352560040,1739167838186,-500.0,0.00010957,2]
[352560041,1739167838196,-500.0,0.00010957,2]
[352560042,1739167838206,-500.0,0.00010957,2]
[352560043,1739167838215,-257.57528949,0.00010957,2]
[352560044,1739167838225,-500.0,0.00010957,2]
[352560045,1739167838234,-500.0,0.00010957,2]
[352560046,1739167838244,-500.0,0.00010957,2]
[352560047,1739167838254,-500.0,0.00010957,2]
[352560048,1739167838264,-616.9866114,0.00010957,2]
[352560049,1739167838273,-500.0,0.00010957,2]
[352560050,1739167838282,-500.0,0.00010957,2]
[352560051,1739167838291,-500.0,0.00010957,2]
[352560052,1739167838301,-500.0,0.00010957,2]
[352560053,1739167838310,-500.0,0.00010957,2]
[352560054,1739167838319,-500.0,0.00010957,2]
[352560055,1739167838328,-500.0,0.00010957,2]
[352560056,1739167838338,-500.0,0.00010957,2]
[352560057,1739167838347,-206.53333869,0.00010958,2]
[352560058,1739167838357,-312.67526972,0.00010958,2]
[352560059,1739167838367,-184.15537675,0.00010958,2]
[352560060,1739167838376,-500.0,0.00010958,2]
[352560061,1739167838385,-500.0,0.00010958,2]
[352560062,1739167838395,-500.87538263,0.00010958,2]
[352560063,1739167838404,-242.52789533,0.00010958,2]
[352560064,1739167838413,-152.87189063,0.00010958,2]
[352560065,1739167838422,-500.0,0.00010958,2]
[352560066,1739167838431,-615.77630108,0.00010958,2]
[352560067,1739167838440,-500.0,0.00010958,2]
[352560068,1739167838449,-500.0,0.00010958,2]
[352560069,1739167838458,-500.0,0.00010958,2]
[352560070,1739167838467,-500.0,0.00010958,2]
[352560071,1739167838478,-500.0,0.00010958,2]
[352560072,1739167838487,-500.0,0.00010958,2]
[352560073,1739167838497,-500.47673277,0.00010958,2]
[352560074,1739167838506,-500.0,0.00010958,2]
[352560075,1739167838518,-500.0,0.00010958,2]
[352560076,1739167838527,-510.64813425,0.00010958,2]
[352560077,1739167838537,-500.0,0.00010958,2]
[352560078,1739167838547,-500.0,0.00010958,2]
[352560079,1739167838556,-500.0,0.00010958,2]
[352560080,1739167838566,-500.0,0.00010958,2]
[352560081,1739167838576,-500.0,0.00010958,2]
[352560082,1739167838585,-500.0,0.00010958,2]
[352560083,1739167838595,-500.0,0.00010958,2]
[352560084,1739167838604,-500.0,0.00010958,2]
[352560085,1739167838613,-500.0,0.00010958,2]
[352560086,1739167838623,-500.0,0.00010958,2]
[352560087,1739167838632,-500.0,0.00010958,2]
[352560088,1739167838641,-500.0,0.00010958,2]
[352560089,1739167838651,-500.0,0.00010958,2]
[352560090,1739167838661,-573.40769173,0.00010958,2]
[352560091,1739167838670,-500.0,0.00010958,2]
[352560092,1739167838679,-502.11845928,0.00010958,2]
[352560093,1739167838688,-500.0,0.00010958,2]
[352560094,1739167838697,-500.0,0.00010958,2]
[352560095,1739167838706,-501.48391006,0.00010958,2]
[352560096,1739167838716,-504.83743359,0.00010958,2]
[352560097,1739167838725,-501.39598792,0.00010958,2]
[352560098,1739167838734,-502.11505977,0.00010958,2]
[352560099,1739167838744,-508.65395795,0.00010958,2]
[352560100,1739167838753,-500.0,0.00010958,2]
[352560101,1739167838762,-500.0,0.00010958,2]
[352560102,1739167838771,-495.0,0.00010958,2]
[352560103,1739167838780,-500.0,0.00010958,2]
[352560104,1739167838789,-500.0,0.00010958,2]
[352560105,1739167838798,-500.0,0.00010958,2]
[352560106,1739167838807,-340.91033059,0.00010958,2]
[352560107,1739167838816,-500.0,0.00010958,2]
[352560108,1739167838827,-500.0,0.00010958,2]
[352560109,1739167838836,-500.0,0.00010958,2]
[352560110,1739167838846,-500.0,0.00010958,2]
[352560111,1739167838855,-500.0,0.00010958,2]
[352560112,1739167838864,-505.16998022,0.00010958,2]
[352560113,1739167838873,-500.0,0.00010958,2]
[352560114,1739167838882,-500.0,0.00010958,2]
[352560115,1739167838891,-500.0,0.00010958,2]
[352560116,1739167838901,-500.0,0.00010958,2]
[352560117,1739167838910,-500.0,0.00010958,2]
[352560118,1739167838919,-500.0,0.00010958,2]
[352560119,1739167838929,-502.38696587,0.00010958,2]
[352560120,1739167838939,-500.0,0.00010958,2]
[352560121,1739167838948,-500.0,0.00010958,2]
[352560122,1739167838957,-500.0,0.00010958,2]
[352560123,1739167838966,-500.0,0.00010958,2]
[352560124,1739167838976,-500.0,0.00010958,2]
[352560125,1739167838985,-500.0,0.00010958,2]
[352560126,1739167838995,-500.0,0.00010958,2]
[352560127,1739167839005,-500.0,0.00010958,2]
[352560128,1739167839015,-500.0,0.00010958,2]
[352560129,1739167839024,-505.08,0.00010958,2]
[352560130,1739167839034,-150.0,0.00010958,2]
[352560131,1739167839043,-500.0,0.00010958,2]
[352560132,1739167839053,-400.84424532,0.00010958,2]
[352560133,1739167839062,-500.0,0.00010958,2]
[352560134,1739167839072,-500.0,0.00010958,2]
[352560135,1739167839081,-500.0,0.00010958,2]
[352560136,1739167839091,-500.0,0.00010958,2]
[352560137,1739167839100,-500.0,0.00010958,2]
[352560138,1739167839110,-500.0,0.00010958,2]
[352560139,1739167839119,-500.0,0.00010958,2]
[352560140,1739167839128,-500.0,0.00010958,2]
[352560141,1739167839138,-528.73043669,0.00010958,2]
[352560142,1739167839147,-500.0,0.00010958,2]
[352560143,1739167839157,-500.0,0.00010958,2]
[352560144,1739167839167,-500.0,0.00010958,2]
[352560145,1739167839176,-409.18946355,0.00010958,2]
[352560146,1739167839186,-500.0,0.00010958,2]
[352560147,1739167839196,-335.42731859,0.00010958,2]
[352560148,1739167839205,-500.0,0.00010958,2]
[352560149,1739167839215,-500.0,0.00010958,2]
[352560150,1739167839225,-245.9902577,0.00010958,2]
[352560151,1739167839234,-500.0,0.00010958,2]
[352560152,1739167839244,-500.0,0.00010958,2]
[352560153,1739167839254,-500.0,0.00010958,2]
[352560154,1739167839264,-273.1012504,0.00010958,2]
[352560155,1739167839274,-500.0,0.00010958,2]
[352560156,1739167839283,-500.0,0.00010958,2]
[352560157,1739167839292,-500.0,0.00010958,2]
[352560158,1739167839302,-500.0,0.00010958,2]
[352560159,1739167839312,-500.0,0.00010958,2]
[352560160,1739167839322,-500.0,0.00010958,2]
[352560161,1739167839331,-500.0,0.00010958,2]
[352560162,1739167839341,-502.52653628,0.00010958,2]
[352560163,1739167839351,-500.0,0.00010958,2]
[352560164,1739167839361,-500.0,0.00010958,2]
[352560165,1739167839370,-500.0,0.00010958,2]
[352560166,1739167839380,-500.0,0.00010958,2]
[352560167,1739167839389,-500.0,0.00010958,2]
[352560168,1739167839398,-500.0,0.00010958,2]
[352560169,1739167839408,-500.0,0.00010958,2]
[352560170,1739167839417,-500.0,0.00010958,2]
[352560171,1739167839426,-500.0,0.00010958,2]
[352560172,1739167839436,-626.97894453,0.00010958,2]
[352560173,1739167839445,-500.0,0.00010958,2]
[352560174,1739167839455,-500.0,0.00010958,2]
[352560175,1739167839464,-500.0,0.00010958,2]
[352560176,1739167839478,-500.0,0.00010958,2]
[352560177,1739167839487,-500.0,0.00010958,2]
[352560178,1739167839497,-500.0,0.00010958,2]
[352560179,1739167839507,-500.0,0.00010958,2]
[352560180,1739167839517,-500.0,0.00010958,2]
[352560181,1739167839527,-500.0,0.00010958,2]
[352560182,1739167839536,-500.0,0.00010958,2]
[352560183,1739167839546,-500.0,0.00010958,2]
[352560184,1739167839556,-500.0,0.00010958,2]
[352560185,1739167839566,-500.0,0.00010958,2]
[352560186,1739167839577,-500.0,0.00010958,2]
[352560187,1739167839586,-500.0,0.00010958,2]
[352560188,1739167839596,-500.0,0.00010958,2]
[352560189,1739167839605,-500.0,0.00010958,2]
[352560190,1739167839615,-500.0,0.00010958,2]
[352560191,1739167839624,-500.0,0.00010958,2]
[352560192,1739167839634,-500.0,0.00010958,2]
[352560193,1739167839643,-500.0,0.00010958,2]
[352560194,1739167839653,-500.0,0.00010958,2]
[352560195,1739167839663,-500.0,0.00010958,2]
[352560196,1739167839672,-500.0,0.00010958,2]
[352560197,1739167839681,-500.0,0.00010958,2]
[352560198,1739167839691,-500.0,0.00010958,2]
[352560199,1739167839700,-500.0,0.00010958,2]
[352560200,1739167839710,-500.0,0.00010958,2]
[352560201,1739167839719,-500.0,0.00010958,2]
[352560202,1739167839728,-500.0,0.00010958,2]
[352560203,1739167839738,-500.0,0.00010958,2]
[352560204,1739167839747,-500.0,0.00010958,2]
[352560205,1739167839757,-423.42867661,0.00010958,2]
[352560206,1739167839767,-500.0,0.00010958,2]
[352560207,1739167839777,-500.0,0.00010958,2]
[352560208,1739167839787,-500.0,0.00010958,2]
[352560209,1739167839796,-500.0,0.00010958,2]
[352560210,1739167839805,-500.0,0.00010958,2]
[352560211,1739167839814,-500.0,0.00010958,2]
[352560212,1739167839824,-500.0,0.00010958,2]
[352560213,1739167839833,-500.0,0.00010958,2]
[352560214,1739167839842,-500.0,0.00010958,2]
[352560215,1739167839852,-500.0,0.00010958,2]
[352560216,1739167839861,-500.0,0.00010958,2]
[352560217,1739167839870,-502.8092109,0.00010958,2]
[352560218,1739167839880,-500.0,0.00010958,2]
[352560219,1739167839889,-500.0,0.00010958,2]
[352560220,1739167839898,-500.0,0.00010958,2]
[352560221,1739167839907,-500.0,0.00010958,2]
[352560222,1739167839916,-500.0,0.00010958,2]
[352560223,1739167839926,-500.0,0.00010958,2]
[352560224,1739167839935,-500.0,0.00010958,2]
[352560225,1739167839945,-500.0,0.00010958,2]
[352560226,1739167839954,-500.0,0.00010958,2]
[352560227,1739167839963,-500.0,0.00010958,2]
[352560228,1739167839973,-500.0,0.00010958,2]
[352560229,1739167839982,-500.0,0.00010958,2]
[352560230,1739167839991,-500.0,0.00010958,2]
[352560232,1739167840001,-500.0,0.00010958,2]
[352560234,1739167840010,-500.0,0.00010958,2]
[352560236,1739167840020,-500.0,0.00010958,2]
[352560238,1739167840030,-501.84905345,0.00010958,2]
[352560240,1739167840041,-500.0,0.00010958,2]
[352560242,1739167840051,-500.0,0.00010958,2]
[352560244,1739167840060,-500.0,0.00010958,2]
[352560246,1739167840070,-500.0,0.00010958,2]
[352560248,1739167840079,-500.0,0.00010958,2]
[352560250,1739167840089,-500.0,0.00010958,2]
[352560252,1739167840099,-500.0,0.00010958,2]
[352560254,1739167840108,-500.0,0.00010958,2]
[352560256,1739167840117,-365.39215376,0.00010958,2]
[352560258,1739167840126,-500.0,0.00010958,2]
[352560260,1739167840135,-500.0,0.00010958,2]
[352560262,1739167840145,-500.0,0.00010958,2]
[352560264,1739167840154,-500.0,0.00010958,2]
[352560266,1739167840164,-500.0,0.00010958,2]
[352560268,1739167840173,-504.93192374,0.00010958,2]
[352560270,1739167840182,-500.0,0.00010958,2]
[352560272,1739167840191,-501.77729455,0.00010958,2]
[352560274,1739167840201,-500.0,0.00010958,2]
[352560276,1739167840211,-507.96076098,0.00010958,2]
[352560278,1739167840220,-504.77192176,0.00010958,2]
[352560280,1739167840230,-383.5966545,0.00010958,2]
[352560282,1739167840239,-500.0,0.00010958,2]
[352560284,1739167840249,-500.0,0.00010958,2]
[352560286,1739167840258,-500.0,0.00010958,2]
[352560288,1739167840267,-500.0,0.00010958,2]
[352560290,1739167840276,-500.0,0.00010958,2]
[352560292,1739167840285,-500.0,0.00010958,2]
[352560294,1739167840295,-403.47630691,0.00010958,2]
[352560296,1739167840304,-500.0,0.00010958,2]
[352560298,1739167840314,-500.0,0.00010958,2]
[352560299,1739167840323,-500.0,0.00010958,2]
[352560300,1739167840332,-514.89562728,0.00010958,2]
[352560301,1739167840341,-500.0,0.00010958,2]
[352560302,1739167840350,-500.0,0.00010958,2]
[352560303,1739167840359,-500.0,0.00010958,2]
[352560304,1739167840368,-676.77,0.00010958,2]
[352560305,1739167840377,-500.0,0.00010958,2]
[352560306,1739167840387,-500.0,0.00010958,2]
[352560307,1739167840396,-505.15729397,0.00010958,2]
[352560308,1739167840405,-500.0,0.00010958,2]
[352560309,1739167840414,-229.20618133,0.00010958,2]
[352560310,1739167840423,-500.0,0.00010958,2]
[352560311,1739167840432,-501.1831696,0.00010958,2]
[352560312,1739167840441,-500.0,0.00010958,2]
[352560313,1739167840450,-500.0,0.00010958,2]
[352560314,1739167840459,-500.0,0.00010958,2]
[352560315,1739167840470,-500.0,0.00010958,2]
[352560316,1739167840480,-500.0,0.00010958,2]
[352560317,1739167840489,-500.0,0.00010958,2]
[352560318,1739167840499,-554.33101471,0.00010958,2]
[352560319,1739167840508,-500.0,0.00010958,2]
[352560320,1739167840518,-500.0,0.00010958,2]
[352560321,1739167840527,-500.0,0.00010958,2]
[352560322,1739167840536,-500.0,0.00010958,2]
[352560323,1739167840545,-500.0,0.00010958,2]
[352560324,1739167840554,-500.0,0.00010958,2]
[352560325,1739167840563,-500.0,0.00010958,2]
[352560326,1739167840573,-500.0,0.00010958,2]
[352560327,1739167840582,-500.0,0.00010958,2]
[352560328,1739167840591,-500.0,0.00010958,2]
[352560329,1739167840600,-502.31016563,0.00010958,2]
[352560330,1739167840609,-500.0,0.00010958,2]
[352560331,1739167840618,-500.0,0.00010958,2]
[352560332,1739167840627,-500.0,0.00010958,2]
[352560333,1739167840636,-500.0,0.00010958,2]
[352560334,1739167840645,-500.0,0.00010958,2]
[352560335,1739167840655,-516.76355915,0.00010958,2]
[352560336,1739167840663,-500.0,0.00010958,2]
[352560337,1739167840673,-500.0,0.00010958,2]
[352560338,1739167840682,-500.0,0.00010958,2]
[352560339,1739167840691,-500.0,0.00010958,2]
[352560340,1739167840700,-500.0,0.00010958,2]
[352560341,1739167840830,-500.0,0.00010958,2]
[352560342,1739167840844,-500.0,0.00010958,2]
[352560343,1739167840853,-508.04654616,0.00010958,2]
[352560344,1739167840863,-500.0,0.00010958,2]
[352560345,1739167840872,-500.0,0.00010958,2]
[352560346,1739167840882,-500.0,0.00010958,2]
[352560347,1739167840892,-500.0,0.00010958,2]
[352560348,1739167840902,-500.0,0.00010958,2]
[352560349,1739167840912,-500.0,0.00010958,2]
[352560350,1739167840921,-328.26008922,0.00010958,2]
[352560351,1739167840931,-500.0,0.00010958,2]
[352560352,1739167840941,-500.0,0.00010958,2]
[352560353,1739167840951,-500.0,0.00010958,2]
[352560354,1739167840960,-500.0,0.00010958,2]
[352560355,1739167840970,-500.0,0.00010958,2]
[352560356,1739167840980,-500.0,0.00010958,2]
[352560357,1739167840990,-500.0,0.00010958,2]
[352560358,1739167840999,-314.11658252,0.00010958,2]
[352560359,1739167841009,-500.0,0.00010958,2]
[352560360,1739167841018,-500.0,0.00010958,2]
[352560361,1739167841027,-500.0,0.00010958,2]
[352560362,1739167841037,-500.0,0.00010958,2]
[352560363,1739167841046,-500.0,0.00010958,2]
[352560364,1739167841055,-500.0,0.00010958,2]
[352560365,1739167841066,-500.0,0.00010958,2]
[352560366,1739167841075,-500.0,0.00010958,2]
[352560367,1739167841086,-502.72544818,0.00010958,2]
[352560368,1739167841095,-466.98428487,0.00010958,2]
[352560369,1739167841105,-501.28256331,0.00010958,2]
[352560370,1739167841114,-500.98860077,0.00010958,2]
[352560371,1739167841124,-500.0,0.00010958,2]
[352560372,1739167841133,-500.0,0.00010958,2]
[352560373,1739167841143,-1328.13,0.00010958,2]
[352560374,1739167841152,-500.0,0.00010958,2]
[352560375,1739167841161,-507.93299252,0.00010958,2]
[352560376,1739167841171,-500.0,0.00010958,2]
[352560377,1739167841181,-500.0,0.00010958,2]
[352560378,1739167841190,-500.0,0.00010958,2]
[352560379,1739167841200,-506.32281639,0.00010958,2]